bitfinex/quotes_BTCUSD_20240101
["timestamp","ask_amount","ask_price","bid_price","bid_amount"]
[1704152532857,0.001,44091.0,44086.0,0.8001]
[1704152533065,0.001,44091.0,44086.0,0.8101]
[1704152533280,0.001,44091.0,44087.0,0.01]
[1704152533517,0.003,44090.0,44087.0,0.31]
[1704152533918,0.001,44089.0,44087.0,0.31]
[1704152534557,0.001,44089.0,44087.0,0.317]
[1704152534820,0.05946,44099.0,44087.0,0.31]
[1704152535179,0.001,44089.0,44088.0,0.01]
[1704152536055,0.001,44089.0,44088.0,0.00327076]
[1704152536236,0.001,44089.0,44088.0,0.33648787]
[1704152536490,0.001,44089.0,44088.0,0.63948787]
[1704152536692,0.0714,44099.0,44088.0,0.303]
[1704152536915,0.0714,44099.0,44089.0,0.3]
[1704152537035,0.0724,44099.0,44089.0,0.3]
[1704152537230,0.30461711,44099.0,44089.0,0.3]
[1704152537711,0.23321711,44098.0,44089.0,0.3]
[1704152537910,0.29345711,44098.0,44088.0,0.003]
[1704152538155,0.001,44089.0,44088.0,0.005]
[1704152538284,0.0543,44097.0,44087.0,0.3]
[1704152538482,0.28751711,44097.0,44088.0,0.005]
[1704152538688,0.28751711,44097.0,44089.0,0.001]
[1704152538909,0.04782,44096.0,44089.0,0.001]
[1704152539112,0.28103711,44096.0,44089.0,0.001]
[1704152539721,0.05088,44095.0,44089.0,0.001]
[1704152540118,0.28409711,44095.0,44089.0,0.001]
[1704152540371,0.23321711,44094.0,44087.0,0.3]
[1704152540574,0.29981711,44094.0,44088.0,0.002]
[1704152540737,0.06,44093.0,44088.0,0.002]
[1704152540939,0.23321711,44092.0,44088.0,0.002]
[1704152541398,0.04356,44091.0,44080.0,0.3]
[1704152541600,0.04356,44091.0,44079.0,0.3]
[1704152541813,0.04356,44091.0,44081.0,0.00487882]
[1704152541962,0.04356,44091.0,44080.0,0.00488562]
[1704152542165,0.04356,44091.0,44082.0,0.00487203]
[1704152542368,0.04356,44091.0,44079.0,0.3]
[1704152542369,0.04356,44091.0,44081.0,0.00487882]
[1704152542566,0.04356,44091.0,44079.0,0.42768483]
[1704152542567,0.04356,44091.0,44083.0,0.00486523]
[1704152542768,0.04456,44091.0,44082.0,0.00487203]
[1704152543006,0.04356,44091.0,44084.0,0.00485844]
[1704152543147,0.04356,44091.0,44083.0,0.00486823]
[1704152543352,0.04356,44091.0,44079.0,0.32768483]
[1704152543353,0.001,44091.0,44085.0,0.00485464]
[1704152543553,0.001,44091.0,44084.0,0.00486143]
[1704152543758,0.001,44091.0,44086.0,0.00486111]
[1704152543959,0.001,44091.0,44085.0,0.0048623]
[1704152544176,0.001,44091.0,44082.0,0.016]
[1704152544177,0.002,44091.0,44082.0,0.016]
[1704152544477,0.001,44091.0,44084.0,0.00327076]
[1704152544715,0.04848,44094.0,44084.0,0.30327076]
[1704152544901,0.04848,44094.0,44086.0,0.002]
[1704152545048,0.04848,44094.0,44085.0,0.00485552]
[1704152545260,0.04848,44094.0,44087.0,0.00485732]
[1704152545462,0.28169711,44094.0,44084.0,0.7282]
[1704152545676,0.23321711,44093.0,44088.0,0.00485732]
[1704152545885,0.41285711,44093.0,44086.0,0.002]
[1704152546092,0.08268,44092.0,44089.0,0.00485555]
[1704152546299,0.23421711,44091.0,44084.0,0.7232]
[1704152546501,0.23421711,44091.0,44090.0,0.00485854]
[1704152546702,0.23421711,44091.0,44084.0,0.3]
[1704152546703,0.07836,44090.0,44080.0,0.3949]
[1704152546914,0.23321711,44089.0,44086.0,0.002]
[1704152547125,0.23321711,44089.0,44080.0,0.3949]
[1704152547369,0.30125711,44089.0,44080.0,0.3949]
[1704152547717,0.0651,44088.0,44080.0,0.3949]
[1704152548008,0.29831711,44088.0,44080.0,0.3949]
[1704152548210,0.29831711,44088.0,44086.0,0.002]
[1704152548414,0.0573,44087.0,44086.0,0.002]
[1704152548839,0.29051711,44087.0,44086.0,0.002]
[1704152549416,0.29051711,44087.0,44081.0,0.3]
[1704152549668,0.23321711,44086.0,44081.0,0.3]
[1704152549893,0.29279711,44086.0,44081.0,0.3]
[1704152550321,0.05418,44085.0,44081.0,0.3]
[1704152550738,0.05418,44085.0,44081.0,0.302]
[1704152551213,0.23321711,44084.0,44081.0,0.302]
[1704152551423,0.23321711,44084.0,44081.0,0.002]
[1704152551685,0.31127711,44084.0,44081.0,0.002]
[1704152551883,0.31127711,44084.0,44081.0,0.004]
[1704152551884,0.07314,44083.0,44081.0,0.004]
[1704152552047,0.30635711,44083.0,44081.0,0.004]
[1704152552245,0.30635711,44083.0,44081.0,0.002]
[1704152552448,0.07116,44082.0,44081.0,0.001]
[1704152552651,0.07116,44082.0,44081.0,0.003]
[1704152553055,0.07116,44082.0,44076.0,0.3]
[1704152553271,0.07116,44082.0,44081.0,0.002]
[1704152553423,0.07116,44082.0,44081.0,0.001]
[1704152553848,0.08116,44082.0,44081.0,0.002]
[1704152554590,0.08116,44082.0,44081.0,0.001]
[1704152554793,0.09116,44082.0,44081.0,0.002]
[1704152556699,0.09116,44082.0,44081.0,0.00687153]
[1704152558250,0.32437711,44082.0,44081.0,0.00687153]
[1704152560574,0.41875711,44082.0,44081.0,0.00687153]
[1704152560806,0.00468409,44081.0,44076.0,0.3]
[1704152561004,0.00672924,44076.0,44075.0,2.275]
[1704152561214,0.23994635,44076.0,44075.0,2.275]
[1704152561342,0.38022635,44076.0,44075.0,1.8642]
[1704152561562,1.32722635,44076.0,44075.0,1.8642]
[1704152562762,1.32722635,44076.0,44075.0,1.84271574]
[1704152563009,0.00672924,44071.0,44056.0,0.4093]
[1704152563221,0.23321711,44070.0,44056.0,0.090796]
[1704152563435,0.48010711,44070.0,44056.0,0.090796]
[1704152563637,0.25476,44069.0,44050.0,0.4093]
[1704152563916,0.23321711,44068.0,44050.0,0.4093]
[1704152564120,0.23321711,44068.0,44051.0,0.090799]
[1704152564333,0.23321711,44068.0,44056.0,0.003]
[1704152564334,0.23496,44067.0,44056.0,0.003]
[1704152564529,0.23321711,44066.0,44056.0,0.009]
[1704152565221,0.19344,44065.0,44056.0,0.009]
[1704152565451,0.23321711,44064.0,44056.0,0.009]
[1704152565653,0.23321711,44064.0,44051.0,0.390799]
[1704152565898,0.07794,44063.0,44051.0,0.390799]
[1704152566112,0.23321711,44062.0,44051.0,0.390799]
[1704152566364,0.23321711,44062.0,44056.0,0.003]
[1704152566584,0.06036,44061.0,44051.0,0.390799]
[1704152566866,0.23321711,44060.0,44051.0,0.390799]
[1704152567080,0.23321711,44060.0,44051.0,0.393799]
[1704152567298,0.08442,44069.0,44056.0,0.00327076]
[1704152567518,0.23321711,44068.0,44056.0,0.30327076]
[1704152567738,0.001,44062.0,44057.0,0.3897]
[1704152567962,0.07788,44067.0,44058.0,0.3]
[1704152568184,0.23321711,44066.0,44058.0,0.3]
[1704152568404,0.23321711,44066.0,44059.0,0.00686336]
[1704152568639,0.001,44060.0,44059.0,0.00686336]
[1704152568917,0.0762,44065.0,44059.0,0.00686336]
[1704152569171,0.23321711,44064.0,44059.0,0.00687356]
[1704152569385,0.002,44060.0,44059.0,0.00687356]
[1704152569589,0.23321711,44064.0,44058.0,0.306]
[1704152569800,0.05142,44063.0,44059.0,0.00687805]
[1704152570005,0.001,44060.0,44059.0,0.00987805]
[1704152570237,0.001,44060.0,44059.0,0.003]
[1704152570436,0.001,44060.0,44059.0,0.00987805]
[1704152570687,0.04644,44063.0,44058.0,0.30327076]
[1704152570870,0.18384,44069.0,44059.0,0.01087805]
[1704152571090,0.001,44063.0,44059.0,0.01387805]
[1704152571468,0.001,44063.0,44059.0,0.00987805]
[1704152571829,0.002,44063.0,44059.0,0.00987805]
[1704152572054,0.001,44063.0,44059.0,0.00687805]
[1704152572259,0.17616,44067.0,44058.0,0.30327076]
[1704152572458,0.001,44060.0,44059.0,0.00934535]
[1704152572679,0.23321711,44066.0,44059.0,0.00934535]
[1704152572680,0.31865711,44066.0,44059.0,0.00687235]
[1704152573081,0.001,44063.0,44059.0,0.00887235]
[1704152573280,0.23321711,44063.0,44059.0,0.00687235]
[1704152573489,0.23321711,44063.0,44058.0,0.3]
[1704152573851,0.29933711,44062.0,44059.0,0.01087684]
[1704152574357,0.39173711,44062.0,44059.0,0.00887684]
[1704152574563,0.08598,44061.0,44059.0,0.002]
[1704152574772,0.23321711,44060.0,44059.0,0.002]
[1704152575189,0.41225711,44060.0,44059.0,0.002]
[1704152575403,0.41225711,44060.0,44059.0,0.004]
[1704152576670,0.41225711,44060.0,44058.0,0.002]
[1704152576883,0.41225711,44060.0,44059.0,0.001]
[1704152577060,0.23321711,44060.0,44059.0,0.001]
[1704152577311,0.43973711,44060.0,44058.0,0.002]
[1704152577696,0.24021711,44060.0,44059.0,0.001]
[1704152578149,0.23321711,44060.0,44047.0,0.026915]
[1704152578325,0.42785711,44060.0,44058.0,0.001]
[1704152578587,0.43385711,44060.0,44058.0,0.001]
[1704152578791,0.08484,44059.0,44058.0,0.001]
[1704152578997,0.31805711,44059.0,44058.0,0.001]
[1704152579629,0.006,44060.0,44049.0,0.00327076]
[1704152579842,0.23921711,44060.0,44049.0,0.00327076]
[1704152580049,0.23321711,44060.0,44052.0,0.00327076]
[1704152580258,0.007,44060.0,44059.0,0.001]
[1704152580838,0.007,44060.0,44056.0,0.00327076]
[1704152580839,0.001,44060.0,44056.0,0.00327076]
[1704152581038,0.001,44060.0,44059.0,0.00609437]
[1704152581271,0.002,44060.0,44056.0,0.00327076]
[1704152581685,0.002,44060.0,44057.0,0.00608562]
[1704152582082,0.002,44060.0,44056.0,0.00327076]
[1704152582083,0.001,44060.0,44056.0,0.00327076]
[1704152582302,0.001,44060.0,44058.0,0.0060702]
[1704152582462,0.001,44060.0,44056.0,0.00327076]
[1704152582805,0.008,44060.0,44059.0,0.45395]
[1704152582986,0.17448,44067.0,44059.0,0.75395]
[1704152583196,0.003,44060.0,44059.0,0.76002895]
[1704152583427,0.006,44060.0,44059.0,0.76002895]
[1704152583847,0.003,44060.0,44059.0,0.76002895]
[1704152584056,0.003,44060.0,44059.0,0.76102895]
[1704152584467,0.003,44060.0,44059.0,0.76002895]
[1704152584881,0.01,44060.0,44059.0,0.76102895]
[1704152585085,0.007,44060.0,44059.0,0.76102895]
[1704152585276,0.015,44060.0,44059.0,0.76102895]
[1704152586396,0.45581711,44060.0,44059.0,0.46102895]
[1704152586597,0.45581711,44060.0,44059.0,0.45495]
[1704152587055,0.69479711,44060.0,44059.0,0.45495]
[1704152587269,0.69479711,44060.0,44059.0,0.45395]
[1704152587270,0.53893711,44060.0,44059.0,0.45395]
[1704152587501,0.68929711,44060.0,44059.0,0.45395]
[1704152587751,0.70029711,44060.0,44059.0,0.45495]
[1704152587973,0.72329711,44060.0,44059.0,0.45495]
[1704152588180,0.83550635,44060.0,44059.0,0.45495]
[1704152588473,0.84750635,44060.0,44059.0,0.45495]
[1704152589377,1.02186635,44060.0,44059.0,0.4320714]
[1704152589598,1.02186635,44060.0,44059.0,0.3565183]
[1704152589599,0.80150635,44060.0,44059.0,0.3565183]
[1704152590209,0.80150635,44060.0,44059.0,0.3555183]
[1704152590210,0.79050635,44060.0,44059.0,0.3555183]
[1704152590611,0.98286635,44060.0,44059.0,0.3565183]
[1704152591022,2.71246635,44060.0,44059.0,0.3555183]
[1704152591245,2.70046635,44060.0,44059.0,0.3565183]
[1704152591440,2.56210635,44060.0,44059.0,0.3565183]
[1704152591663,2.54410635,44060.0,44059.0,0.3565183]
[1704152592077,2.56210635,44060.0,44059.0,0.3565183]
[1704152593275,2.38774635,44060.0,44059.0,0.3565183]
[1704152593455,2.29557711,44060.0,44059.0,0.3565183]
[1704152593753,2.02583711,44060.0,44059.0,0.3565183]
[1704152594185,0.93663711,44060.0,44059.0,0.3565183]
[1704152594805,0.91863711,44060.0,44059.0,0.3565183]
[1704152595013,0.93263711,44060.0,44059.0,0.3565183]
[1704152595455,0.99507711,44060.0,44059.0,0.3555183]
[1704152595683,1.01007711,44060.0,44059.0,0.3555183]
[1704152595892,0.99507711,44060.0,44059.0,0.3555183]
[1704152596310,1.01307711,44060.0,44059.0,0.3555183]
[1704152596717,1.02507711,44060.0,44059.0,0.3565183]
[1704152597131,1.02507711,44060.0,44059.0,0.3555183]
[1704152597132,1.01307711,44060.0,44059.0,0.3555183]
[1704152597373,1.01307711,44060.0,44059.0,0.3565183]
[1704152597586,1.02907711,44060.0,44059.0,0.3565183]
[1704152597783,1.03580635,44060.0,44059.0,0.3565183]
[1704152602658,0.94136635,44060.0,44059.0,0.3565183]
[1704152602867,0.93463711,44060.0,44059.0,0.3565183]
[1704152603325,0.034,44060.0,44059.0,0.3565183]
[1704152603741,0.034,44060.0,44059.0,0.6565183]
[1704152604175,0.07992,44070.0,44059.0,0.6555183]
[1704152604383,0.23321711,44069.0,44060.0,0.3]
[1704152604901,0.23321711,44069.0,44061.0,0.55235]
[1704152605107,0.11344,44075.0,44061.0,0.55235]
[1704152605108,0.05166,44076.0,44067.0,0.00327076]
[1704152605315,0.05166,44076.0,44068.0,0.55227]
[1704152605526,0.0984,44083.0,44071.0,0.00327076]
[1704152605527,0.05844,44080.0,44071.0,0.00327076]
[1704152605735,0.29165711,44080.0,44072.0,0.55223]
[1704152605952,0.29165711,44080.0,44073.0,0.3]
[1704152606161,0.29165711,44080.0,44074.0,0.55221]
[1704152606377,0.06170688,44079.0,44075.0,0.3]
[1704152606589,0.0564,44082.0,44076.0,0.55219]
[1704152606794,0.0069,44083.0,44076.0,0.55219]
[1704152606795,0.04482,44080.0,44077.0,0.3]
[1704152607002,0.04482,44080.0,44078.0,0.55217]
[1704152607003,0.04882,44080.0,44078.0,0.55217]
[1704152607462,0.04482,44080.0,44078.0,0.55217]
[1704152607676,0.0069,44083.0,44078.0,0.55217]
[1704152607677,0.0564,44082.0,44079.0,0.3]
[1704152607897,0.01,44080.0,44079.0,0.3]
[1704152608119,0.01068409,44081.0,44078.0,0.1]
[1704152608335,0.01068409,44081.0,44079.0,0.45373]
[1704152608560,0.013,44080.0,44079.0,0.45373]
[1704152608786,0.01068409,44081.0,44079.0,0.75373]
[1704152609002,0.01068409,44081.0,44080.0,0.3]
[1704152609217,0.00468409,44081.0,44080.0,0.75372]
[1704152610117,0.00468409,44081.0,44080.0,1.04700685]
[1704152610333,0.00468409,44081.0,44080.0,1.05127761]
[1704152610334,0.01068409,44081.0,44080.0,1.05127761]
[1704152610953,0.00468409,44081.0,44080.0,1.38349472]
[1704152611161,0.00468409,44081.0,44080.0,0.76499076]
[1704152611162,0.00568409,44081.0,44080.0,0.76499076]
[1704152611568,0.00568409,44081.0,44080.0,0.76599076]
[1704152611569,0.01468409,44081.0,44080.0,0.76599076]
[1704152611784,0.00568409,44081.0,44080.0,0.76499076]
[1704152611990,0.00668409,44081.0,44080.0,0.77199076]
[1704152612418,0.00468409,44081.0,44080.0,0.75699076]
[1704152612688,0.00568409,44081.0,44080.0,0.76499076]
[1704152613110,0.00468409,44081.0,44080.0,0.75799076]
[1704152613325,0.00468409,44081.0,44080.0,0.76099076]
[1704152614077,0.00468409,44081.0,44080.0,0.75772]
[1704152615503,0.00468409,44081.0,44080.0,0.75372]
[1704152615703,0.00468409,44081.0,44080.0,0.75472]
[1704152615704,0.01468409,44081.0,44080.0,0.75472]
[1704152616103,0.01368409,44081.0,44080.0,0.75472]
[1704152616545,0.01968409,44081.0,44080.0,0.75572]
[1704152617075,0.01968409,44081.0,44080.0,0.95899076]
[1704152617477,0.01968409,44081.0,44080.0,1.31520787]
[1704152617727,0.01968409,44081.0,44080.0,8.86500787]
[1704152617928,0.01968409,44081.0,44080.0,8.81520787]
[1704152618380,0.00468409,44081.0,44080.0,8.81320787]
[1704152618761,0.00668409,44081.0,44080.0,8.92149472]
[1704152618939,0.00568409,44081.0,44080.0,8.91149472]
[1704152619138,0.00468409,44081.0,44080.0,8.90649472]
[1704152619344,0.00568409,44081.0,44080.0,8.97727472]
[1704152619585,0.00668409,44081.0,44080.0,8.99127472]
[1704152619986,0.00668409,44081.0,44080.0,8.97727472]
[1704152619987,0.00568409,44081.0,44080.0,8.97727472]
[1704152620204,0.00568409,44081.0,44080.0,8.79693711]
[1704152620398,0.00668409,44081.0,44080.0,8.81093711]
[1704152620568,0.00668409,44081.0,44080.0,8.81420787]
[1704152620771,0.00668409,44081.0,44080.0,8.47772]
[1704152620971,0.00568409,44081.0,44080.0,8.26772]
[1704152621173,0.00668409,44081.0,44080.0,8.47772]
[1704152621805,0.00668409,44081.0,44080.0,8.48099076]
[1704152622007,0.00668409,44081.0,44080.0,8.47772]
[1704152624827,0.00668409,44081.0,44080.0,8.52422]
[1704152628019,0.00668409,44081.0,44080.0,8.52749076]
[1704152628894,0.00668409,44081.0,44080.0,8.95399472]
[1704152629281,0.00668409,44081.0,44080.0,9.62996356]
[1704152629497,0.3837,44097.0,44090.0,0.10327076]
[1704152629696,0.2052185,44100.0,44091.0,0.85016761]
[1704152629907,0.43843561,44100.0,44092.0,0.65296884]
[1704152630105,0.43843561,44100.0,44093.0,0.75359]
[1704152630343,0.43843561,44100.0,44094.0,8.15296884]
[1704152630578,0.43843561,44100.0,44095.0,1.40653884]
[1704152630789,0.44243561,44100.0,44096.0,0.65296884]
[1704152630991,0.44243561,44100.0,44097.0,0.75355]
[1704152631199,0.43843561,44100.0,44098.0,8.15296884]
[1704152631435,0.44743561,44100.0,44099.0,1.40649884]
[1704152631644,0.44643561,44100.0,44099.0,1.40649884]
[1704152631879,0.51651561,44100.0,44099.0,1.40649884]
[1704152632087,0.52051561,44100.0,44099.0,8.90649884]
[1704152632491,0.3012985,44100.0,44099.0,8.90749884]
[1704152633353,0.2892985,44100.0,44099.0,8.90749884]
[1704152633567,0.3052985,44100.0,44099.0,8.90849884]
[1704152633774,0.53851561,44100.0,44099.0,8.90849884]
[1704152633976,0.63055561,44100.0,44099.0,8.90849884]
[1704152634396,0.3052985,44100.0,44099.0,8.90849884]
[1704152635284,0.3930785,44100.0,44099.0,8.90849884]
[1704152635707,0.3229985,44100.0,44099.0,8.90849884]
[1704152636754,0.64663561,44100.0,44099.0,8.90849884]
[1704152637637,0.64663561,44100.0,44099.0,1.40849884]
[1704152638821,0.53197561,44100.0,44099.0,1.40849884]
[1704152644234,0.66055561,44100.0,44099.0,1.40849884]
[1704152644869,0.56449561,44100.0,44099.0,1.40849884]
[1704152645073,0.53083561,44100.0,44099.0,1.40849884]
[1704152646983,0.2352185,44100.0,44099.0,1.40849884]
[1704152647190,0.2787185,44100.0,44099.0,1.40849884]
[1704152647607,0.2647185,44100.0,44099.0,1.40749884]
[1704152647816,0.2647185,44100.0,44099.0,1.40849884]
[1704152648039,0.2717185,44100.0,44099.0,1.40849884]
[1704152648446,0.2717185,44100.0,44099.0,8.90849884]
[1704152648990,0.2647185,44100.0,44099.0,8.90749884]
[1704152649429,0.2727185,44100.0,44099.0,8.90849884]
[1704152649631,0.48993561,44100.0,44099.0,1.10749884]
[1704152649833,0.64255561,44100.0,44099.0,1.10649884]
[1704152650241,0.65755561,44100.0,44099.0,1.10849884]
[1704152650458,0.54549561,44100.0,44099.0,1.10749884]
[1704152650636,0.54749561,44100.0,44099.0,1.10749884]
[1704152650843,0.54049561,44100.0,44099.0,1.10649884]
[1704152651083,0.54749561,44100.0,44099.0,1.10749884]
[1704152651283,0.55749561,44100.0,44099.0,1.10849884]
[1704152651695,0.55749561,44100.0,44099.0,1.40849884]
[1704152651896,0.55749561,44100.0,44099.0,1.40846619]
[1704152652232,0.55049561,44100.0,44099.0,1.40746619]
[1704152652436,0.54849561,44100.0,44099.0,1.40746619]
[1704152652642,0.54849561,44100.0,44099.0,1.40846619]
[1704152652643,0.55849561,44100.0,44099.0,1.40846619]
[1704152652996,0.52691561,44100.0,44099.0,1.40746619]
[1704152653311,0.53491561,44100.0,44099.0,1.40846619]
[1704152653514,0.52491561,44100.0,44099.0,1.40746619]
[1704152653715,0.51691561,44100.0,44099.0,8.90646619]
[1704152653927,0.52691561,44100.0,44099.0,8.90746619]
[1704152654138,0.2772185,44100.0,44099.0,8.90846619]
[1704152654961,0.54049561,44100.0,44099.0,8.90846619]
[1704152655753,0.53249561,44100.0,44099.0,8.90746619]
[1704152655952,0.2785185,44100.0,44099.0,8.90746619]
[1704152656587,0.2785185,44100.0,44099.0,8.90846619]
[1704152656779,0.2865185,44100.0,44099.0,8.90846619]
[1704152656982,0.2705585,44100.0,44099.0,8.90846619]
[1704152657540,0.2232185,44100.0,44099.0,8.90846619]
[1704152657950,0.2670785,44100.0,44099.0,8.90846619]
[1704152658355,0.2670785,44100.0,44099.0,8.91173695]
[1704152661559,0.2670785,44100.0,44099.0,8.96460328]
[1704152662210,0.2670785,44100.0,44099.0,8.91173695]
[1704152662410,0.2670785,44100.0,44099.0,9.01656648]
[1704152662565,0.2670785,44100.0,44099.0,9.01329572]
[1704152663261,0.2670785,44100.0,44099.0,9.0395031]
[1704152664452,0.2670785,44100.0,44099.0,9.04067835]
[1704152664650,0.2670785,44100.0,44099.0,8.90846619]
[1704152665273,0.2670785,44100.0,44099.0,9.04068237]
[1704152668236,0.2232185,44100.0,44099.0,9.04068237]
[1704152668378,0.2677985,44100.0,44099.0,9.04068237]
[1704152669092,0.2877985,44100.0,44099.0,9.04068237]
[1704152669757,0.2432185,44100.0,44099.0,9.14068237]
[1704152669970,0.2432185,44100.0,44099.0,9.16898125]
[1704152670179,0.2432185,44100.0,44099.0,9.11173695]
[1704152671076,0.2332185,44100.0,44099.0,9.11073695]
[1704152671418,0.2252185,44100.0,44099.0,9.20943695]
[1704152671617,0.2252185,44100.0,44099.0,9.3067238]
[1704152671818,0.2252185,44100.0,44099.0,9.53994091]
[1704152672228,0.2252185,44100.0,44099.0,9.77197158]
[1704152672426,0.2252185,44100.0,44099.0,9.54094091]
[1704152672627,0.2252185,44100.0,44099.0,9.53894091]
[1704152672907,0.2252185,44100.0,44099.0,9.53794091]
[1704152673078,0.2252185,44100.0,44099.0,9.65894091]
[1704152673320,0.2262185,44100.0,44099.0,9.72560091]
[1704152673499,0.2272185,44100.0,44099.0,9.73660091]
[1704152674108,0.2272185,44100.0,44099.0,9.48865406]
[1704152674645,0.2272185,44100.0,44099.0,9.58194091]
[1704152675133,0.2272185,44100.0,44099.0,9.61594341]
[1704152675369,0.2272185,44100.0,44099.0,9.82686464]
[1704152676334,0.2272185,44100.0,44099.0,9.59294341]
[1704152676710,0.2272185,44100.0,44099.0,9.82686464]
[1704152676942,0.2272185,44100.0,44099.0,9.59294341]
[1704152677717,0.2272185,44100.0,44099.0,9.55894091]
[1704152679083,0.2272185,44100.0,44099.0,9.6331553]
[1704152679695,0.2272785,44100.0,44099.0,9.6331553]
[1704152685484,0.2272785,44100.0,44099.0,9.55894091]
[1704152685709,0.2272785,44100.0,44099.0,9.61000091]
[1704152686934,0.2272785,44100.0,44099.0,9.64470887]
[1704152687336,0.2272785,44100.0,44099.0,9.59364887]
[1704152688207,0.2272785,44100.0,44099.0,9.6203222]
[1704152689571,0.2272785,44100.0,44099.0,9.1257238]
[1704152689777,0.2272785,44100.0,44099.0,8.72245304]
[1704152689986,0.2272785,44100.0,44099.0,8.80159977]
[1704152690199,0.2272785,44100.0,44099.0,8.77522162]
[1704152690824,0.2262785,44100.0,44099.0,8.76422162]
[1704152691108,0.2252785,44100.0,44099.0,8.75422162]
[1704152691693,0.2252785,44100.0,44099.0,9.05722162]
[1704152692244,0.2252785,44100.0,44099.0,9.00145304]
[1704152692649,0.2252785,44100.0,44099.0,8.99578604]
[1704152692859,0.45849561,44100.0,44099.0,8.69378604]
[1704152693061,0.51589561,44100.0,44099.0,8.69378604]
[1704152693824,0.51489561,44100.0,44099.0,8.69378604]
[1704152694031,0.51489561,44100.0,44099.0,1.19478604]
[1704152694231,0.52189561,44100.0,44099.0,1.49478604]
[1704152694638,0.54775561,44100.0,44099.0,1.19478604]
[1704152694838,0.63721561,44100.0,44099.0,1.19478604]
[1704152695037,0.55175561,44100.0,44099.0,1.19478604]
[1704152695439,0.54775561,44100.0,44099.0,1.19478604]
[1704152696078,0.54775561,44100.0,44099.0,1.19578604]
[1704152696079,0.56075561,44100.0,44099.0,1.19578604]
[1704152696284,0.55375561,44100.0,44099.0,1.19478604]
[1704152696488,0.55375561,44100.0,44099.0,1.49478604]
[1704152696812,0.56275561,44100.0,44099.0,1.49578604]
[1704152697276,0.55375561,44100.0,44099.0,1.49478604]
[1704152697525,0.54583561,44100.0,44099.0,1.49578604]
[1704152698207,0.54583561,44100.0,44099.0,8.99578604]
[1704152698897,0.48649561,44100.0,44099.0,8.99578604]
[1704152699337,0.53377561,44100.0,44099.0,8.99578604]
[1704152701092,0.53377561,44100.0,44099.0,8.99575741]
[1704152701309,0.3005585,44100.0,44099.0,8.99575741]
[1704152702175,0.53377561,44100.0,44099.0,8.99575741]
[1704152702397,0.56857561,44100.0,44099.0,8.99575741]
[1704152702611,0.65641561,44100.0,44099.0,8.99575741]
[1704152702848,0.56857561,44100.0,44099.0,8.99575741]
[1704152703520,0.2532785,44100.0,44099.0,8.99575741]
[1704152703765,0.48649561,44100.0,44099.0,8.99575741]
[1704152703993,0.56299561,44100.0,44099.0,8.99575741]
[1704152705050,0.53803561,44100.0,44099.0,8.99575741]
[1704152705490,0.48649561,44100.0,44099.0,8.99524141]
[1704152705919,0.53119561,44100.0,44099.0,8.99524141]
[1704152706811,0.48649561,44100.0,44099.0,8.99524141]
[1704152707953,0.53275561,44100.0,44099.0,8.99524141]
[1704152708159,0.48649561,44100.0,44099.0,8.99524141]
[1704152708375,0.53245561,44100.0,44099.0,8.99524141]
[1704152710899,0.55219561,44100.0,44099.0,8.99524141]
[1704152711509,0.64628485,44100.0,44099.0,8.99524141]
[1704152711662,0.64628485,44100.0,44099.0,1.49524141]
[1704152711867,0.68858485,44100.0,44099.0,1.40195456]
[1704152712117,0.68858485,44100.0,44099.0,1.10195456]
[1704152712691,0.68858485,44100.0,44099.0,1.19524141]
[1704152713299,0.68858485,44100.0,44099.0,1.19024141]
[1704152714521,0.71158485,44100.0,44099.0,1.19024141]
[1704152715148,0.71158485,44100.0,44099.0,1.09695456]
[1704152715354,0.71158485,44100.0,44099.0,1.07023865]
[1704152716335,1.40742485,44100.0,44099.0,1.07023865]
[1704152717752,1.40742485,44100.0,44099.0,1.04967062]
[1704152719924,1.54800485,44100.0,44099.0,1.02910259]
[1704152720783,1.53300485,44100.0,44099.0,1.00753456]
[1704152720987,1.53300485,44100.0,44099.0,0.97325452]
[1704152721234,1.53800485,44100.0,44099.0,0.97225452]
[1704152721588,1.55500485,44100.0,44099.0,0.94240247]
[1704152721791,1.55500485,44100.0,44099.0,0.91497844]
[1704152721989,1.55500485,44100.0,44099.0,0.89441041]
[1704152722207,1.60810485,44100.0,44099.0,0.89441041]
[1704152722602,1.60810485,44100.0,44099.0,0.24150285]
[1704152723573,1.60810485,44100.0,44099.0,0.18836878]
[1704152723980,1.83795028,44100.0,44099.0,0.16265874]
[1704152724427,0.00672924,44086.0,44084.0,0.3]
[1704152724580,0.12013924,44086.0,44085.0,0.65321474]
[1704152724919,0.12013924,44086.0,44085.0,0.95321474]
[1704152725123,0.34293924,44086.0,44085.0,1.40687474]
[1704152725327,0.34293924,44086.0,44085.0,1.10687474]
[1704152725696,0.57615635,44086.0,44085.0,1.10687474]
[1704152726671,0.59215635,44086.0,44085.0,1.10687474]
[1704152727279,0.61015635,44086.0,44085.0,1.10687474]
[1704152728129,0.75049635,44086.0,44085.0,1.10687474]
[1704152728370,0.83641635,44086.0,44085.0,1.10687474]
[1704152728611,0.83641635,44086.0,44085.0,0.45366]
[1704152729271,0.92005799,44086.0,44085.0,0.45366]
[1704152729493,0.83641635,44086.0,44085.0,0.45366]
[1704152729959,1.31065635,44086.0,44085.0,0.43041049]
[1704152730200,1.31065635,44086.0,44085.0,0.30006357]
[1704152730201,1.29265635,44086.0,44085.0,0.30006357]
[1704152730424,0.00672924,44076.0,44075.0,2.275]
[1704152730640,0.26294635,44076.0,44075.0,2.275]
[1704152730836,0.40142635,44076.0,44075.0,2.275]
[1704152731038,0.67706635,44076.0,44075.0,2.275]
[1704152731399,0.79051635,44076.0,44075.0,2.275]
[1704152732014,0.80751635,44076.0,44075.0,2.275]
[1704152732425,0.82551635,44076.0,44075.0,2.275]
[1704152732831,0.80751635,44076.0,44075.0,2.275]
[1704152733030,0.82551635,44076.0,44075.0,2.275]
[1704152733660,0.98281635,44076.0,44075.0,2.275]
[1704152733903,2.59259635,44076.0,44075.0,2.275]
[1704152734026,2.61059635,44076.0,44075.0,2.275]
[1704152734438,2.59259635,44076.0,44075.0,2.275]
[1704152734637,2.41829635,44076.0,44075.0,2.275]
[1704152734851,2.41829635,44076.0,44075.0,2.72877]
[1704152734852,2.33726711,44076.0,44075.0,2.72877]
[1704152735073,0.33882635,44076.0,44075.0,2.72877]
[1704152735282,0.32082635,44076.0,44075.0,2.72877]